fUSD/lending_fUSD_20260404
["ID","MTS","AMOUNT","RATE_DAILY","PERIOD"]
[419706208,1775326240322,-150.0,0.00015138,2]
[419706209,1775326240333,-6019.0,0.00015152,2]
[419706210,1775326240343,-2470.0,0.00015152,2]
[419706211,1775326240353,-150.0,0.00015158,2]
[419706212,1775326240363,-150.0,0.00015158,2]
[419706213,1775326240373,-500.0,0.00015167,2]
[419706214,1775326240383,-151.0,0.00015167,2]
[419706215,1775326240392,-150.0,0.00015168,2]
[419706216,1775326240402,-166.66,0.00015199,2]
[419706217,1775326240412,-150.0,0.000152,2]
[419706218,1775326240422,-150.0,0.000152,2]
[419706219,1775326240432,-150.0,0.000152,2]
[419706220,1775326240443,-2000.0,0.000152,2]
[419706221,1775326240453,-10000.0,0.00015205,2]
[419706222,1775326240462,-161.86,0.00015214,2]
[419706223,1775326240472,-500.0,0.00015222,2]
[419706224,1775326240482,-151.0,0.00015222,2]
[419706225,1775326240492,-150.0,0.00015232,2]
[419706226,1775326240502,-350.0,0.00015233,2]
[419706227,1775326240512,-4957.0,0.00015241,2]
[419706228,1775326240522,-150.0,0.00015242,2]
[419706229,1775326240532,-150.0,0.00015242,2]
[419706230,1775326240543,-1282.0,0.00015243,5]
[419706231,1775326240553,-1749.0,0.00015243,5]
[419706232,1775326240563,-168.0,0.00015247,2]
[419706233,1775326240572,-150.0,0.00015262,2]
[419706234,1775326240583,-2438.29976955,0.00015264,2]
[419706235,1775326240593,-2860.66086349,0.00015264,2]
[419706236,1775326240602,-500.0,0.00015277,2]
[419706237,1775326240612,-151.0,0.00015277,2]
[419706238,1775326240622,-4957.0,0.00015281,2]
[419706239,1775326240631,-150.0,0.00015289,2]
[419706240,1775326240641,-150.0,0.00015296,2]
[419706241,1775326240651,-4387.0,0.00015306,2]
[419706242,1775326240660,-4387.0,0.00015306,2]
[419706243,1775326240670,-4387.0,0.00015306,2]
[419706244,1775326240680,-4387.0,0.00015306,2]
[419706245,1775326240690,-4387.0,0.00015306,2]
[419706246,1775326240700,-4387.0,0.00015306,2]
[419706247,1775326240710,-4387.0,0.00015306,2]
[419706248,1775326240720,-4387.0,0.00015306,2]
[419706249,1775326240730,-4387.0,0.00015306,2]
[419706250,1775326240740,-4387.0,0.00015306,2]
[419706251,1775326240750,-4387.0,0.00015306,2]
[419706252,1775326240760,-4387.0,0.00015306,2]
[419706253,1775326240771,-4387.0,0.00015306,2]
[419706254,1775326240781,-4387.0,0.00015306,2]
[419706255,1775326240791,-4387.0,0.00015306,2]
[419706256,1775326240801,-4387.0,0.00015306,2]
[419706257,1775326240810,-4387.0,0.00015306,2]
[419706258,1775326240820,-150.0,0.00015306,2]
[419706259,1775326240830,-150.0,0.00015306,2]
[419706260,1775326240839,-150.0,0.00015306,2]
[419706261,1775326240850,-216.19443643,0.00015306,2]
[419706262,1775326240860,-4387.0,0.00015306,2]
[419706263,1775326240870,-4387.0,0.00015306,2]
[419706264,1775326240880,-4387.0,0.00015306,2]
[419706265,1775326240890,-4387.0,0.00015306,2]
[419706266,1775326240900,-4387.0,0.00015306,2]
[419706267,1775326240910,-4387.0,0.00015306,2]
[419706268,1775326240920,-4399.29355466,0.00015306,2]
[419706269,1775326240930,-672.0,0.0001531,2]
[419706270,1775326240943,-672.0,0.0001531,2]
[419706271,1775326240952,-672.0,0.0001531,2]
[419706272,1775326240962,-672.0,0.0001531,2]
[419706273,1775326240972,-672.0,0.0001531,2]
[419706274,1775326240981,-672.0,0.0001531,2]
[419706275,1775326240991,-672.0,0.0001531,2]
[419706276,1775326241000,-672.0,0.0001531,2]
[419706278,1775326241011,-672.0,0.0001531,2]
[419706279,1775326241021,-672.0,0.0001531,2]
[419706280,1775326241030,-672.0,0.0001531,2]
[419706281,1775326241040,-672.0,0.0001531,2]
[419706282,1775326241050,-672.0,0.0001531,2]
[419706283,1775326241060,-672.0,0.0001531,2]
[419706284,1775326241070,-672.0,0.0001531,2]
[419706285,1775326241079,-672.0,0.0001531,2]
[419706286,1775326241088,-672.0,0.0001531,2]
[419706287,1775326241098,-672.0,0.0001531,2]
[419706288,1775326241107,-672.0,0.0001531,2]
[419706289,1775326241117,-672.0,0.0001531,2]
[419706290,1775326241127,-672.0,0.0001531,2]
[419706291,1775326241136,-672.0,0.0001531,2]
[419706292,1775326241145,-672.0,0.0001531,2]
[419706293,1775326241155,-692.53940565,0.0001531,2]
[419706294,1775326241164,-150.99,0.0001531,2]
[419706295,1775326241174,-9999.99,0.0001531,2]
[419706296,1775326241183,-299.99,0.0001531,2]
[419706297,1775326241192,-5791.26,0.0001531,2]
[419706298,1775326241202,-150.0,0.00015314,2]
[419706299,1775326241211,-150.0,0.00015314,2]
[419706300,1775326241220,-150.0,0.00015326,2]
[419706301,1775326241231,-150.0,0.00015326,2]
[419706302,1775326241241,-500.0,0.00015332,2]
[419706303,1775326241250,-151.0,0.00015332,2]
[419706304,1775326241561,-150.0,0.0001536,2]
[419706305,1775326241570,-150.0,0.0001536,2]
[419706306,1775326241580,-500.0,0.00015373,2]
[419706307,1775326241590,-500.0,0.00015373,2]
[419706308,1775326241601,-500.0,0.00015373,2]
[419706309,1775326241610,-500.0,0.00015373,2]
[419706310,1775326241619,-500.0,0.00015373,2]
[419706311,1775326241629,-501.15172574,0.00015373,2]
[419706312,1775326241639,-500.0,0.00015373,2]
[419706313,1775326241648,-500.0,0.00015373,2]
[419706314,1775326241657,-500.0,0.00015373,2]
[419706315,1775326241667,-168.0,0.00015374,2]
[419706316,1775326241677,-150.0,0.00015378,2]
[419706317,1775326241688,-150.0,0.00015385,2]
[419706318,1775326241697,-200.0,0.00015385,2]
[419706319,1775326241709,-658.53755309,0.00015385,2]
[419706320,1775326241719,-181.08010149,0.00015385,2]
[419706321,1775326241729,-500.0,0.00015387,2]
[419706322,1775326241739,-151.0,0.00015387,2]
[419706323,1775326241749,-1979.71839249,0.000154,2]
[419706324,1775326241758,-512.53794019,0.000154,2]
[419706325,1775326241768,-2000.0,0.000154,2]
[419706326,1775326241777,-150.0,0.00015411,2]
[419706327,1775326241787,-150.0,0.00015411,2]
[419706328,1775326241796,-2438.29976955,0.00015423,2]
[419706329,1775326241805,-2860.66086349,0.00015423,2]
[419706330,1775326241815,-150.0,0.00015424,2]
[419706331,1775326241824,-150.0,0.00015429,2]
[419706332,1775326241833,-193.8,0.00015435,2]
[419706333,1775326241843,-150.0,0.00015467,2]
[419706334,1775326241852,-150.0,0.00015488,2]
[419706335,1775326241862,-150.0,0.00015495,2]
[419706336,1775326241871,-150.0,0.00015495,2]
[419706337,1775326241880,-160.9357,0.000155,2]
[419706338,1775326241890,-730.83557716,0.000155,2]
[419706339,1775326241899,-1231.35459603,0.000155,2]
[419706340,1775326241908,-150.0,0.00015508,2]
[419706341,1775326241918,-801.38807767,0.00015511,2]
[419706342,1775326241927,-350.0,0.00015529,2]
[419706343,1775326241936,-150.0,0.00015543,2]
[419706344,1775326241945,-150.0,0.00015543,2]
[419706345,1775326241954,-150.0,0.00015552,2]
[419706346,1775326241965,-150.0,0.00015556,2]
[419706347,1775326241975,-1600.0,0.0001556,2]
[419706348,1775326241984,-222.89727349,0.0001557,2]
[419706349,1775326241994,-362.4459879,0.00015573,2]
[419706350,1775326242006,-496.04461416,0.00015573,2]
[419706351,1775326242016,-501.18780645,0.00015573,2]
[419706352,1775326242027,-307.35572359,0.00015573,2]
[419706353,1775326242038,-500.0,0.00015573,2]
[419706354,1775326242050,-150.0,0.00015579,2]
[419706355,1775326242061,-150.0,0.00015579,2]
[419706356,1775326242070,-500.0,0.00015579,2]
[419706357,1775326242080,-500.0,0.00015579,2]
[419706358,1775326242090,-785.54,0.00015579,2]
[419706359,1775326242100,-965344.3468,0.0001558,2]
[419706360,1775326242110,-161.86,0.00015581,2]
[419706361,1775326242119,-2438.29976955,0.00015582,2]
[419706362,1775326242129,-2860.66086349,0.00015582,2]
[419706363,1775326242140,-160.9357,0.000156,2]
[419706364,1775326242150,-150.0,0.000156,2]
[419706365,1775326242160,-2000.0,0.00015601,2]
[419706366,1775326242170,-150.0,0.00015616,2]
[419706367,1775326242180,-150.0,0.00015631,2]
[419706368,1775326242190,-855.35507685,0.00015634,2]
[419706369,1775326242201,-168.0,0.00015644,2]
[419706370,1775326242212,-150.0,0.00015644,2]
[419706371,1775326242221,-150.0,0.00015657,2]
[419706372,1775326242231,-150.0,0.00015663,2]
[419706373,1775326242240,-150.0,0.00015663,2]
[419706374,1775326242250,-168.0,0.00015665,2]
[419706375,1775326242259,-231.76270005,0.00015672,2]
[419706376,1775326242270,-299.72439662,0.00015672,2]
[419706377,1775326242281,-2630.15521228,0.0001568,2]
[419706378,1775326242289,-150.0,0.0001568,2]
[419706379,1775326242301,-150.0,0.0001568,2]
[419706380,1775326242310,-1127.19965707,0.0001568,2]
[419706381,1775326242319,-1077.4608031,0.0001568,2]
[419706382,1775326242329,-1065.34224079,0.0001568,2]
[419706383,1775326242338,-1127.63406972,0.0001568,2]
[419706384,1775326242348,-1016.41205426,0.0001568,2]
[419706385,1775326242357,-1064.11391115,0.0001568,2]
[419706386,1775326242367,-1080.76869171,0.0001568,2]
[419706387,1775326242376,-1105.85589776,0.0001568,2]
[419706388,1775326242386,-1047.93678408,0.0001568,2]
[419706389,1775326242395,-1054.60566739,0.0001568,2]
[419706390,1775326242404,-1019.75449213,0.0001568,2]
[419706391,1775326242414,-1044.64534203,0.0001568,2]
[419706392,1775326242424,-1029.49456848,0.0001568,2]
[419706393,1775326242434,-1099.21868958,0.0001568,2]
[419706394,1775326242443,-1097.83577033,0.0001568,2]
[419706395,1775326242453,-1111.09504323,0.0001568,2]
[419706396,1775326242464,-1041.62554099,0.0001568,2]
[419706397,1775326242473,-1067.51265622,0.0001568,2]
[419706398,1775326242483,-1025.29001985,0.0001568,2]
[419706399,1775326242493,-160.9357,0.000157,2]
[419706400,1775326242504,-2000.0,0.00015701,2]
[419706401,1775326242514,-194609.24030404,0.0001572,2]
[419706402,1775326242524,-150.0,0.00015726,2]
[419706403,1775326242533,-500.0,0.00015726,2]
[419706404,1775326242542,-900.0,0.00015726,2]
[419706405,1775326242551,-150.0,0.00015733,2]
[419706406,1775326242563,-2438.29976955,0.00015741,2]
[419706407,1775326242573,-2860.66086349,0.00015741,2]
[419706408,1775326242582,-150.0,0.00015744,2]
[419706409,1775326242592,-150.0,0.00015747,2]
[419706410,1775326242601,-150.0,0.00015747,2]
[419706411,1775326242611,-150.0,0.00015754,2]
[419706412,1775326242621,-150.0,0.0001577,2]
[419706414,1775326242630,-150.0,0.00015771,2]
[419706416,1775326242640,-150.0,0.00015771,2]
[419706418,1775326242649,-350.0,0.00015776,2]
[419706420,1775326242659,-1538.701433,0.00015779,2]
[419706422,1775326242668,-160.9357,0.000158,2]
[419706424,1775326242678,-2000.0,0.00015801,2]
[419706427,1775326242687,-1000.0,0.00015802,2]
[419706429,1775326242696,-150.0,0.00015803,2]
[419706430,1775326242706,-150.0,0.00015803,2]
[419706432,1775326242715,-150.0,0.00015803,2]
[419706434,1775326242724,-150.0,0.00015803,2]
[419706436,1775326242733,-150.0,0.00015803,2]
[419706438,1775326242742,-150.0,0.00015803,2]
[419706441,1775326242752,-150.0,0.00015803,2]
[419706444,1775326242761,-1046.0,0.00015803,2]
[419706446,1775326242771,-622.0,0.00015803,2]
[419706448,1775326242780,-1347.0,0.00015803,2]
[419706450,1775326242788,-150.0,0.00015803,2]
[419706452,1775326242798,-1263.0,0.00015803,2]
[419706454,1775326242807,-150.0,0.00015808,2]
[419706456,1775326242816,-150.0,0.00015821,2]
[419706458,1775326242826,-150.0,0.00015822,2]
[419706460,1775326242835,-150.0,0.00015832,2]
[419706462,1775326242844,-150.0,0.00015832,2]
[419706464,1775326242854,-966.97617,0.0001584,2]
[419706465,1775326242863,-966.97618,0.0001584,2]
[419706466,1775326242872,-6973.6711,0.00015847,2]
[419706467,1775326242882,-1000.0,0.00015847,2]
[419706468,1775326242892,-966.97618,0.0001585,2]
[419706469,1775326242901,-785.54,0.00015853,2]
[419706470,1775326242910,-500.0,0.00015871,2]
[419706471,1775326242920,-500.0,0.00015872,2]
[419706472,1775326242930,-200.0,0.00015872,2]
[419706473,1775326242939,-150.0,0.00015872,2]
[419706474,1775326242950,-150.0,0.00015877,2]
[419706475,1775326242961,-150.0,0.00015886,2]
[419706476,1775326242970,-1000.0,0.00015895,2]
[419706477,1775326242979,-604.90515633,0.000159,2]
[419706478,1775326242989,-160.9357,0.000159,2]
[419706479,1775326242999,-2438.29976955,0.000159,2]
[419706480,1775326243010,-2860.66086349,0.000159,2]
[419706481,1775326243019,-801.38807767,0.000159,2]
[419706482,1775326243029,-2000.0,0.00015901,2]
[419706483,1775326243039,-150.0,0.00015911,2]
[419706484,1775326243049,-150.0,0.00015916,2]
[419706485,1775326243058,-150.0,0.00015916,2]
[419706486,1775326243068,-1000.0,0.00015921,2]
[419706487,1775326243077,-831.51791405,0.00015921,2]
[419706488,1775326243090,-1004.16690782,0.00015921,2]
[419706489,1775326243099,-1000.0,0.00015921,2]
[419706490,1775326243109,-1000.0,0.00015921,2]
[419706491,1775326243118,-187.78006525,0.00015933,2]
[419706492,1775326243127,-150.0,0.00015936,2]
[419706493,1775326243137,-1000.0,0.00015942,2]
[419706494,1775326243147,-991.77111221,0.00015947,2]
[419706495,1775326243156,-245.407609,0.00015967,2]
[419706496,1775326243166,-1000.0,0.00015985,2]
[419706497,1775326243175,-2402.6900566,0.00015987,2]
[419706498,1775326243184,-133247.8043511,0.00015987,2]
[419706499,1775326243194,-74530.6420465,0.00015988,2]
[419706500,1775326243204,-6916.1855183,0.00015988,2]
[419706501,1775326243214,-488235.2245604,0.00015988,2]
[419706502,1775326243223,-1044.444306,0.00015988,2]
[419706503,1775326243233,-1044.444306,0.00015988,2]
[419706504,1775326243242,-1581.7372,0.00015988,2]
[419706505,1775326243251,-1044.444306,0.00015988,2]
[419706506,1775326243261,-1581.7372,0.00015988,2]
[419706507,1775326243271,-1044.444306,0.00015988,2]
[419706508,1775326243281,-1581.7372,0.00015988,2]
[419706509,1775326243290,-1581.7372,0.00015988,2]
[419706510,1775326243300,-242.216241,0.00015988,2]
[419706511,1775326243309,-242.216241,0.00015988,2]
[419706512,1775326243319,-242.216241,0.00015988,2]
[419706513,1775326243328,-242.216241,0.00015988,2]
[419706514,1775326243338,-542.549929,0.00015988,2]
[419706515,1775326243348,-542.549929,0.00015988,2]
[419706516,1775326243358,-542.549929,0.00015988,2]
[419706517,1775326243368,-542.549929,0.00015988,2]
[419706518,1775326243378,-1609.226141,0.00015988,2]
[419706519,1775326243389,-735.594438,0.00015988,2]
[419706520,1775326243400,-1609.226141,0.00015988,2]
[419706521,1775326243410,-735.594438,0.00015988,2]
[419706522,1775326243421,-1609.226141,0.00015988,2]
[419706523,1775326243431,-735.594438,0.00015988,2]
[419706524,1775326243441,-1609.226141,0.00015988,2]
[419706525,1775326243451,-735.594438,0.00015988,2]
[419706526,1775326243461,-270.9430444,0.0001599,2]
[419706527,1775326243471,-222.89727349,0.0001599,2]
[419706528,1775326243481,-672.00857251,0.00015999,2]
[419706529,1775326243492,-150.0,0.00016,2]
[419706530,1775326243502,-150.0,0.00016,2]
[419706531,1775326243512,-150.0,0.00016,2]
[419706532,1775326243521,-150.0,0.00016,2]
[419706533,1775326243531,-150.0,0.00016,2]
[419706534,1775326243541,-150.0,0.00016,2]
[419706535,1775326243551,-150.0,0.00016,2]
[419706536,1775326243560,-150.0,0.00016,2]
[419706537,1775326243571,-150.0,0.00016,2]
[419706538,1775326243581,-975957.79571881,0.00016,2]
[419706540,1775326243598,-49893.4752637,0.00016,2]
[419706544,1775326244155,-925.0,0.00015152,2]
[419706545,1775326244165,-193860.9858122,0.00016,2]
[419706546,1775326244326,-3693.67181145,0.00016,2]
[419706547,1775326244349,-42300.5,0.00016,2]
[419706548,1775326244870,-525.4984174,0.00016,2]
[419706549,1775326244947,-2667.88970174,0.00016,2]
[419706569,1775326246145,-450.60654917,0.00016,2]
[419706570,1775326246280,-1339.76704607,0.00016,2]
[419706571,1775326246297,-281.32,0.00016,2]
[419706572,1775326246314,-87223.38925024,0.00016,2]
[419706573,1775326246327,-3973.95170521,0.00016,2]
[419706574,1775326246344,-53272.5316852,0.00016,2]
[419706575,1775326246373,-549.74487618,0.00016,2]
[419706576,1775326246384,-424.74516373,0.00016,2]
[419706577,1775326246395,-673.43,0.00016,2]
[419706638,1775327431993,-167.21,0.00012969,2]
[419706639,1775327432008,-365.47,0.00013011,2]
[419706640,1775327432022,-1351.02262742,0.00013027,2]
[419706641,1775327432122,-1182.65737258,0.00013027,2]
[419706642,1775327432132,-500.0,0.00013111,2]
[419706643,1775327432142,-222.89727349,0.00013145,2]
[419706644,1775327432152,-1200.0,0.00013154,2]
[419706645,1775327432162,-150.0,0.00013154,2]
[419706646,1775327432172,-300.0,0.00013154,2]
[419706647,1775327432182,-82719.88091882,0.00013155,2]
[419706648,1775327432195,-1254.41808677,0.00013155,2]
[419706651,1775327438351,-241.95460988,0.00013154,2]
[419706652,1775327438361,-500.0,0.00013154,2]
[419706653,1775327438371,-500.0,0.00013154,2]
[419706654,1775327438382,-500.0,0.00013154,2]
[419706655,1775327438391,-500.0,0.00013154,2]
[419706656,1775327438401,-474.11898703,0.00013154,2]
[419706657,1775327438410,-321.86820786,0.00013154,2]
[419706658,1775327438419,-2355416.62059441,0.00013155,2]
[419706659,1775327438429,-500.0,0.00013173,2]
[419706660,1775327438438,-2079.878,0.00013253,2]
[419706661,1775327438447,-171.934,0.00013253,2]
[419706662,1775327438457,-30939.34,0.00013254,2]
[419706663,1775327438467,-152.59,0.00013329,2]
[419706664,1775327438477,-151.58,0.00013357,2]
[419706665,1775327438486,-1654.63737627,0.00013481,2]
[419706666,1775327438496,-2500.0,0.00013498,2]
[419706667,1775327438505,-165.06846975,0.00013521,2]
[419706668,1775327438515,-500.0,0.00013573,2]
[419706669,1775327438524,-151.0,0.0001359,2]
[419706670,1775327438534,-200.0,0.0001359,2]
[419706671,1775327438544,-151.0,0.0001359,2]
[419706672,1775327438553,-151.0,0.0001359,2]
[419706673,1775327438563,-151.0,0.0001359,2]
[419706674,1775327438572,-151.0,0.0001359,2]
[419706675,1775327438582,-151.0,0.0001359,2]
[419706676,1775327438592,-151.0,0.0001359,2]
[419706677,1775327438601,-151.0,0.0001359,2]
[419706678,1775327438611,-5534.43995114,0.00013598,2]
[419706679,1775327438621,-2813.37291948,0.00013598,2]
[419706680,1775327438631,-1902.63121175,0.00013598,2]
[419706681,1775327438641,-181.1958867,0.00013598,2]
[419706682,1775327438650,-500.0,0.00013698,2]
[419706683,1775327438660,-500.0,0.00013698,2]
[419706684,1775327438669,-500.0,0.00013698,2]
[419706685,1775327438679,-500.0,0.00013698,2]
[419706686,1775327438689,-500.0,0.00013698,2]
[419706687,1775327438698,-500.0,0.00013698,2]
[419706688,1775327438708,-500.0,0.00013698,2]
[419706689,1775327438717,-500.0,0.00013698,2]
[419706690,1775327438727,-500.0,0.00013698,2]
[419706691,1775327438736,-500.0,0.00013698,2]
[419706692,1775327438746,-500.0,0.00013698,2]
[419706693,1775327438755,-500.0,0.00013698,2]
[419706694,1775327438764,-500.0,0.00013698,2]
[419706695,1775327438774,-500.0,0.00013698,2]
[419706696,1775327438784,-500.0,0.00013698,2]
[419706697,1775327438793,-500.0,0.00013698,2]
[419706698,1775327438803,-500.0,0.00013698,2]
[419706699,1775327438813,-491.0,0.00013698,2]
[419706700,1775327438822,-500.0,0.00013698,2]
[419706701,1775327438831,-500.0,0.00013698,2]
[419706702,1775327438840,-500.0,0.00013698,2]
[419706703,1775327438850,-500.0,0.00013698,2]
[419706704,1775327438859,-500.0,0.00013698,2]
[419706705,1775327438868,-500.0,0.00013698,2]
[419706706,1775327438879,-554.98922439,0.00013698,2]
[419706707,1775327438890,-500.0,0.00013698,2]
[419706708,1775327438899,-500.0,0.00013698,2]
[419706709,1775327438908,-540.38303843,0.00013698,2]
[419706710,1775327438918,-295.94,0.00013698,2]
[419706711,1775327438928,-500.0,0.00013698,2]
[419706712,1775327438937,-500.0,0.00013698,2]
[419706713,1775327438946,-500.0,0.00013698,2]
[419706714,1775327438956,-500.0,0.00013698,2]
[419706715,1775327438965,-500.0,0.00013698,2]
[419706716,1775327438975,-512.39809745,0.00013698,2]
[419706717,1775327438985,-150.0,0.00013699,2]
[419706718,1775327438994,-200.0,0.00013699,2]
[419706719,1775327439003,-500.0,0.00013699,2]
[419706720,1775327439013,-290.9357212,0.00013699,2]
[419706721,1775327439023,-1000.0,0.00013721,2]
[419706722,1775327439032,-5534.43995105,0.00013854,2]
[419706723,1775327439042,-2813.37291944,0.00013854,2]
[419706724,1775327439051,-167.21,0.00013896,2]
[419706725,1775327439061,-1902.63121173,0.00013927,2]
[419706726,1775327439071,-295.94,0.00013972,2]
[419706727,1775327439080,-150.0,0.00013973,2]
[419706728,1775327439091,-5534.43995105,0.0001411,2]
[419706729,1775327439100,-2813.37291944,0.0001411,2]
[419706730,1775327439110,-599.27710317,0.00014121,2]
[419706731,1775327439120,-1979.71839249,0.000142,2]
[419706732,1775327439130,-295.96,0.00014246,2]
[419706733,1775327439140,-1902.63121173,0.00014256,2]
[419706734,1775327439149,-255.0,0.00014258,2]
[419706735,1775327439159,-195.0,0.00014266,2]
[419706736,1775327439168,-195.0,0.00014266,2]
[419706737,1775327439178,-195.0,0.00014266,2]
[419706738,1775327439188,-195.0,0.00014266,2]
[419706739,1775327439197,-195.0,0.00014266,2]
[419706740,1775327439206,-2500.0,0.00014266,2]
[419706741,1775327439216,-2500.0,0.00014266,2]
[419706742,1775327439226,-2500.0,0.00014266,2]
[419706743,1775327439236,-2500.0,0.00014266,2]
[419706744,1775327439246,-250.0,0.00014266,2]
[419706745,1775327439256,-300.0,0.00014266,2]
[419706746,1775327439266,-300.0,0.00014266,2]
[419706747,1775327439275,-300.0,0.00014266,2]
[419706748,1775327439285,-2500.0,0.00014266,2]
[419706749,1775327439294,-5000.0,0.00014266,2]
[419706750,1775327439303,-448.07422048,0.00014266,2]
[419706751,1775327439314,-500.0,0.00014266,2]
[419706752,1775327439323,-217.47992615,0.00014273,2]
[419706753,1775327439332,-1602.77615536,0.00014296,2]
[419706754,1775327439343,-165.06846975,0.00014314,2]
[419706755,1775327439352,-900.0,0.00014356,2]
[419706756,1775327439362,-500.0,0.00014356,2]
[419706757,1775327439372,-5534.43995105,0.00014365,2]
[419706758,1775327439381,-2813.37291944,0.00014365,2]
[419706759,1775327439390,-672.00857251,0.00014372,2]
[419706760,1775327439400,-500.0,0.00014372,2]
[419706761,1775327439409,-500.0,0.00014372,2]
[419706762,1775327439419,-500.0,0.00014372,2]
[419706763,1775327439428,-500.0,0.00014372,2]
[419706764,1775327439437,-500.0,0.00014372,2]
[419706765,1775327439447,-306.90768699,0.00014373,2]
[419706766,1775327439456,-500.0,0.00014373,2]
[419706767,1775327439466,-500.0,0.00014373,2]
[419706768,1775327439476,-500.0,0.00014373,2]
[419706769,1775327439486,-500.67291823,0.00014373,2]
[419706770,1775327439496,-500.0,0.00014373,2]
[419706771,1775327439505,-500.92096855,0.00014373,2]
[419706772,1775327439515,-307.35572359,0.00014373,2]
[419706773,1775327439524,-500.0,0.00014373,2]
[419706774,1775327439534,-419.18220394,0.00014373,2]
[419706775,1775327439543,-500.0,0.00014373,2]
[419706776,1775327439553,-500.0,0.00014373,2]
[419706777,1775327439563,-500.0,0.00014373,2]
[419706778,1775327439573,-500.0,0.00014373,2]
[419706779,1775327439583,-500.0,0.00014373,2]
[419706780,1775327439594,-500.0,0.00014373,2]
[419706781,1775327439604,-500.0,0.00014373,2]
[419706782,1775327439614,-500.0,0.00014373,2]
[419706783,1775327439623,-500.0,0.00014373,2]
[419706784,1775327439633,-500.0,0.00014373,2]
[419706785,1775327439643,-500.0,0.00014373,2]
[419706786,1775327439653,-500.0,0.00014373,2]
[419706787,1775327439663,-500.0,0.00014373,2]
[419706788,1775327439674,-500.0,0.00014373,2]
[419706789,1775327439683,-184.40015724,0.00014373,2]
[419706790,1775327439693,-501.15172574,0.00014373,2]
[419706791,1775327439703,-500.0,0.00014373,2]
[419706792,1775327439712,-500.0,0.00014373,2]
[419706793,1775327439722,-500.0,0.00014373,2]
[419706795,1775327439732,-500.0,0.00014373,2]
[419706796,1775327439742,-1471842.0075,0.00014373,2]
[419706797,1775327439751,-967.29011043,0.00014396,2]
[419706798,1775327439761,-150.0,0.000144,2]
[419706799,1775327439771,-150.0,0.000144,2]
[419706800,1775327439781,-150.0,0.000144,2]
[419706802,1775327439791,-150.0,0.000144,2]
[419706804,1775327439800,-150.0,0.000144,2]
[419706805,1775327439810,-150.0,0.000144,2]
[419706806,1775327439819,-150.0,0.000144,2]
[419706807,1775327439829,-150.0,0.000144,2]
[419706808,1775327439839,-150.0,0.000144,2]
[419706809,1775327439848,-150.0,0.000144,2]
[419706810,1775327439858,-2805.0,0.000144,2]
[419706811,1775327439868,-150.0,0.00014462,2]
[419706812,1775327439877,-1000.0,0.00014465,2]
[419706813,1775327439887,-6973.6711,0.00014465,2]
[419706814,1775327439897,-1680.0,0.00014469,2]
[419706815,1775327439906,-150.0,0.00014473,2]
[419706816,1775327439915,-150.0,0.00014476,2]
[419706817,1775327439924,-150.0,0.0001448,2]
[419706818,1775327439934,-150.99,0.00014504,2]
[419706819,1775327439943,-9999.99,0.00014504,2]
[419706820,1775327439952,-4999.99,0.00014504,2]
[419706821,1775327439962,-299.99,0.00014504,2]
[419706822,1775327439971,-9277.79,0.00014504,2]
[419706823,1775327439981,-150.0,0.00014507,2]